fUSD/lending_fUSD_20250522
["ID","MTS","AMOUNT","RATE_DAILY","PERIOD"]
[361941918,1747903832765,-292.38,0.00026027,2]
[361941920,1747903832775,-179.56,0.00026035,2]
[361941922,1747903832788,-200.0,0.00026223,2]
[361941924,1747903832798,-200.0,0.00026223,2]
[361941925,1747903832807,-231.28369723,0.00026402,2]
[361941927,1747903832818,-168.3,0.00026468,2]
[361941930,1747903832828,-200.0,0.00026485,2]
[361941931,1747903832837,-200.0,0.00026485,2]
[361941933,1747903832847,-375.91677283,0.000265,2]
[361941944,1747903832944,-600.524985,0.000224,3]
[361941947,1747903832955,-523.3241191,0.000224,3]
[361941949,1747903832970,-468.26544494,0.000224,3]
[361941951,1747903832982,-3968.88545096,0.000224,3]
[361941953,1747903832991,-151.06336077,0.000265,2]
[361941956,1747903833002,-2392.65880984,0.000265,2]
[361941958,1747903833019,-1369.94411283,0.000265,2]
[361942242,1747903838177,-2212.14033473,0.000217,2]
[361942243,1747903838189,-4562.79144681,0.000217,2]
[361942244,1747903838207,-1344.02927925,0.000217,2]
[361942245,1747903838219,-983.76745006,0.000217,2]
[361942246,1747903838230,-609.4164125,0.000217,2]
[361942247,1747903838245,-4806.02902283,0.000217,2]
[361942248,1747903838256,-2093.21959934,0.000217,2]
[361942249,1747903838267,-2098.77666376,0.000217,2]
[361942250,1747903838279,-1235.0,0.000217,2]
[361942251,1747903838290,-1378.62714229,0.000217,2]
[361942252,1747903838301,-3585.6,0.000217,2]
[361942253,1747903838312,-4850.43578301,0.000217,2]
[361942254,1747903838324,-1144.63046961,0.000217,2]
[361942255,1747903838336,-1366.525,0.000217,2]
[361942268,1747903838468,-1781.65127197,0.000217,2]
[361942436,1747903840201,-543.56286855,0.000217,2]
[361942438,1747903840212,-5582.9144837,0.000217,2]
[361942450,1747903840312,-19392.44679243,0.000217,2]
[361942452,1747903840323,-3284.44,0.000217,2]
[361942454,1747903840335,-911.93905103,0.000217,2]
[361942464,1747903840422,-4630.24889858,0.000217,2]
[361942466,1747903840434,-3070.5981233,0.000217,2]
[361942468,1747903840445,-1239.06817245,0.000217,2]
[361942472,1747903840471,-2052.24637638,0.000217,2]
[361942474,1747903840483,-367.03000001,0.000217,2]
[361942477,1747903840494,-3866.95019455,0.000217,2]
[361942479,1747903840505,-2564.0,0.000217,2]
[361942481,1747903840519,-518.91516286,0.000217,2]
[361942483,1747903840529,-516.95282551,0.000265,2]
[361942485,1747903840541,-511.08466066,0.000265,2]
[361942491,1747903840585,-308.35239728,0.000265,2]
[361942493,1747903840596,-441.58,0.000265,2]
[361942496,1747903840612,-3037.54195918,0.000265,2]
[361942498,1747903840625,-2113.0176,0.000265,2]
[361942511,1747903840746,-798.52623198,0.000265,2]
[361942513,1747903840757,-263.9574886,0.000265,2]
[361942515,1747903840769,-758.79780336,0.000265,2]
[361942783,1747903843300,-151.0,0.00020853,2]
[361942785,1747903843312,-691.26145612,0.000265,2]
[361942806,1747903843512,-14527.47751281,0.000265,2]
[361942808,1747903843523,-282.18,0.00026676,2]
[361942810,1747903843533,-200.0,0.00026685,2]
[361942812,1747903843543,-221.48570765,0.00026693,15]
[361942814,1747903843554,-200.0,0.0002675,2]
[361942816,1747903843565,-200.0,0.0002675,2]
[361942818,1747903843575,-1054.4499062,0.00026754,2]
[361942821,1747903843585,-1066.68714674,0.00026754,2]
[361942824,1747903843595,-1040.17867672,0.00026754,2]
[361942827,1747903843605,-1107.59208771,0.00026754,2]
[361942830,1747903843615,-1071.09296442,0.00026754,2]
[361942832,1747903843630,-1034.26473993,0.00026754,2]
[361942834,1747903843640,-150.04,0.00026788,2]
[361942836,1747903843650,-500.0,0.00026801,2]
[361942838,1747903843660,-150.0,0.00026848,2]
[361942840,1747903843670,-1724.67347209,0.00026849,2]
[361942842,1747903843679,-150.0,0.00026985,2]
[361942844,1747903843690,-550.0,0.00027,2]
[361942846,1747903843700,-1888.78663851,0.00027,14]
[361942848,1747903843709,-200.0,0.00027018,2]
[361942849,1747903843719,-708.19,0.00027076,2]
[361942850,1747903843729,-157.48,0.00027084,2]
[361942851,1747903843739,-157.48,0.00027098,2]
[361942852,1747903843748,-157.48,0.00027111,2]
[361942853,1747903843758,-150.0,0.00027122,2]
[361942854,1747903843770,-157.48,0.00027125,2]
[361942855,1747903843781,-157.48,0.00027138,2]
[361942856,1747903843791,-157.48,0.00027152,2]
[361942857,1747903843801,-157.48,0.00027165,2]
[361942859,1747903843811,-157.48,0.00027179,2]
[361942861,1747903843820,-157.48,0.00027192,2]
[361942864,1747903843830,-157.48,0.00027206,2]
[361942866,1747903843839,-157.48,0.0002722,2]
[361942869,1747903843849,-150.0,0.00027259,2]
[361942871,1747903843860,-500.0,0.00027267,2]
[361942873,1747903843873,-500.0,0.00027367,2]
[361942875,1747903843883,-500.0,0.00027367,2]
[361942877,1747903843893,-4000.0,0.0002738,2]
[361942880,1747903843903,-4001.30414256,0.0002739,2]
[361942882,1747903843913,-3469.2802239,0.0002739,2]
[361942884,1747903843923,-150.0,0.00027396,2]
[361942886,1747903843932,-292.38,0.00027397,2]
[361942888,1747903843942,-300.0,0.00027397,2]
[361942890,1747903843951,-2299.51,0.00027397,2]
[361942892,1747903843960,-600.0,0.000274,2]
[361942894,1747903843972,-221.48570765,0.00027417,17]
[361942896,1747903843982,-698.92,0.0002742,2]
[361942898,1747903843992,-151.6754341,0.00027533,2]
[361942900,1747903844001,-799.0,0.00027646,2]
[361942902,1747903844011,-239.84119403,0.00027771,2]
[361942905,1747903844022,-168.3,0.0002778,2]
[361942907,1747903844032,-386.30680926,0.00027815,5]
[361942909,1747903844042,-179.56,0.00027851,2]
[361942911,1747903844052,-232.48567961,0.00028,60]
[361942912,1747903844062,-150.04,0.00028006,2]
[361942915,1747903844072,-221.48570765,0.00028141,18]
[361942917,1747903844082,-204.0,0.00028476,2]
[361942919,1747903844092,-283.22428622,0.00028767,30]
[361942921,1747903844102,-292.38,0.00028767,2]
[361942923,1747903844112,-2299.51,0.00028767,2]
[361942924,1747903844125,-221.48570765,0.00028866,19]
[361942927,1747903844136,-1000.0,0.00028964,2]
[361942929,1747903844146,-600.0,0.00029,2]
[361942931,1747903844155,-151.67,0.00029,2]
[361942933,1747903844166,-248.71531821,0.0002914,2]
[361942935,1747903844176,-237.0,0.000292,2]
[361942937,1747903844185,-375.0,0.000292,2]
[361942939,1747903844198,-766.0,0.000292,2]
[361942941,1747903844207,-150.04,0.00029224,2]
[361942942,1747903844217,-708.19,0.00029339,2]
[361942944,1747903844227,-221.48570765,0.0002959,21]
[361942946,1747903844237,-4000.0,0.0002988,2]
[361942949,1747903844248,-306.07957802,0.00029899,2]
[361942951,1747903844259,-46334.1614484,0.0002999,2]
[361942953,1747903844270,-162.12,0.00029999,2]
[361942955,1747903844281,-500.0,0.00029999,2]
[361942957,1747903844292,-500.0,0.00029999,2]
[361942958,1747903844302,-500.0,0.00029999,2]
[361942960,1747903844313,-500.0,0.00029999,2]
[361942962,1747903844324,-500.0,0.00029999,2]
[361942965,1747903844334,-500.0,0.00029999,2]
[361942967,1747903844344,-249.10164952,0.00029999,2]
[361942968,1747903844355,-500.0,0.00029999,2]
[361942970,1747903844365,-500.0,0.00029999,2]
[361942972,1747903844378,-500.0,0.00029999,2]
[361942974,1747903844388,-500.0,0.00029999,2]
[361942976,1747903844398,-500.0,0.00029999,2]
[361942978,1747903844407,-500.0,0.00029999,2]
[361942980,1747903844417,-500.0,0.00029999,2]
[361942982,1747903844426,-500.0,0.00029999,2]
[361942984,1747903844436,-521.62482075,0.00029999,2]
[361942986,1747903844446,-500.0,0.00029999,2]
[361942988,1747903844457,-500.0,0.00029999,2]
[361942990,1747903844467,-500.0,0.00029999,2]
[361942992,1747903844477,-500.0,0.00029999,2]
[361942994,1747903844487,-500.0,0.00029999,2]
[361942996,1747903844496,-500.0,0.00029999,2]
[361942999,1747903844506,-500.0,0.00029999,2]
[361943001,1747903844516,-500.0,0.00029999,2]
[361943003,1747903844526,-500.0,0.00029999,2]
[361943005,1747903844535,-500.0,0.00029999,2]
[361943006,1747903844544,-500.0,0.00029999,2]
[361943009,1747903844554,-500.0,0.00029999,2]
[361943011,1747903844564,-500.0,0.00029999,2]
[361943013,1747903844573,-500.0,0.00029999,2]
[361943015,1747903844583,-500.0,0.00029999,2]
[361943016,1747903844592,-500.0,0.00029999,2]
[361943018,1747903844602,-627.15243272,0.00029999,2]
[361943020,1747903844611,-500.0,0.00029999,2]
[361943023,1747903844621,-500.0,0.00029999,2]
[361943025,1747903844634,-500.0,0.00029999,2]
[361943027,1747903844644,-500.0,0.00029999,2]
[361943029,1747903844654,-100321.07,0.0003,7]
[361943030,1747903844663,-1550.23954359,0.0003,5]
[361943033,1747903844673,-1700.71991015,0.0003,2]
[361943035,1747903844683,-365.5,0.00030039,120]
[361943037,1747903844692,-7722.3602414,0.00030117,2]
[361943039,1747903844702,-292.38,0.00030136,2]
[361943041,1747903844712,-599.8,0.00030137,2]
[361943043,1747903844722,-2299.51,0.00030137,2]
[361943045,1747903844733,-221.48570765,0.00030314,22]
[361943047,1747903844745,-150.04,0.00030441,2]
[361943049,1747903844754,-257.91778498,0.00030509,2]
[361943051,1747903844765,-2500.0,0.000306,11]
[361943088,1747903844775,-7722.3602414,0.00030611,2]
[361943102,1747903845239,-799.0,0.00030646,2]
[361943104,1747903845249,-306.07957798,0.00030701,2]
[361943106,1747903845259,-255.53941132,0.00030722,2]
[361943108,1747903845269,-650.0,0.00031,2]
[361943110,1747903845277,-164.85434697,0.00031033,15]
[361943112,1747903845287,-221.48570765,0.00031038,24]
[361943114,1747903845297,-1500.0,0.000311,11]
[361943116,1747903845307,-204.0,0.00031103,6]
[361943118,1747903845316,-7722.3602414,0.00031124,2]
[361943120,1747903845326,-255.53941132,0.00031133,2]
[361943122,1747903845335,-172.0,0.00031139,7]
[361943124,1747903845344,-186.90988803,0.00031139,7]
[361943126,1747903845354,-15444.7204828,0.00031416,2]
[361943128,1747903845363,-6180.29,0.00031426,10]
[361943130,1747903845373,-710.48,0.00031426,2]
[361943132,1747903845383,-9999.99,0.00031426,2]
[361943134,1747903845392,-150.99,0.00031426,2]
[361943136,1747903845401,-150.99,0.00031426,2]
[361943138,1747903845411,-3766.85,0.00031426,2]
[361943140,1747903845420,-3664.86,0.00031426,5]
[361943142,1747903845429,-7722.3602414,0.00031497,2]
[361943144,1747903845438,-306.07957798,0.00031504,2]
[361943146,1747903845448,-292.38,0.00031506,2]
[361943148,1747903845457,-2299.51,0.00031507,2]
[361943150,1747903845467,-255.53941132,0.00031544,2]
[361943152,1747903845476,-150.0,0.0003159,2]
[361943154,1747903845485,-1500.0,0.000316,11]
[361943156,1747903845496,-708.19,0.00031603,2]
[361943158,1747903845505,-150.0,0.00031643,2]
[361943160,1747903845515,-150.0,0.00031652,2]
[361943162,1747903845524,-150.04,0.00031659,2]
[361943164,1747903845533,-25029.01259566,0.0003166,2]
[361943166,1747903845543,-150.0,0.00031746,2]
[361943168,1747903845552,-221.48570765,0.00031762,25]
[361943170,1747903845562,-150.0,0.0003178,2]
[361943172,1747903845571,-150.0,0.00031798,2]
[361943174,1747903845580,-150.0,0.00031811,2]
[361943176,1747903845589,-150.0,0.00031841,2]
[361943178,1747903845598,-150.0,0.00031842,2]
[361943180,1747903845607,-150.0,0.00031874,2]
[361943182,1747903845617,-267.46074303,0.00031878,2]
[361943184,1747903845627,-3163.552,0.00031889,30]
[361943186,1747903845636,-171.869,0.00031889,30]
[361943188,1747903845645,-357.606459,0.00031894,120]
[361943190,1747903845654,-158.24458,0.000319,2]
[361943192,1747903845663,-150.0,0.00031923,2]
[361943194,1747903845673,-150.0,0.00031926,2]
[361943196,1747903845682,-150.0,0.00031936,2]
[361943198,1747903845693,-255.53941132,0.00031954,2]
[361943200,1747903845707,-7722.3602414,0.0003198,2]
[361943202,1747903845720,-150.0,0.00031981,2]
[361943204,1747903845734,-5539.31067696,0.00032,2]
[361943206,1747903845745,-150.0,0.00032008,2]
[361943208,1747903845759,-164.85434694,0.00032009,15]
[361943211,1747903845772,-150.0,0.00032042,2]
[361943212,1747903845786,-150.0,0.00032052,2]
[361943214,1747903845797,-150.0,0.00032054,2]
[361943217,1747903845809,-150.0,0.00032057,2]
[361943221,1747903845818,-150.0,0.00032067,2]
[361943222,1747903845828,-150.0,0.00032077,2]
[361943224,1747903845837,-150.0,0.00032082,2]
[361943226,1747903845846,-555.0,0.000321,2]
[361943228,1747903845856,-1500.0,0.000321,11]
[361943229,1747903845866,-150.0,0.00032102,2]
[361943230,1747903845878,-150.0,0.00032102,2]
[361943231,1747903845887,-150.0,0.00032104,2]
[361943232,1747903845897,-150.0,0.00032107,2]
[361943233,1747903845907,-7722.3602414,0.00032119,2]
[361943236,1747903845916,-150.0,0.0003212,2]
[361943237,1747903845925,-150.0,0.00032122,2]
[361943239,1747903845935,-150.0,0.00032128,2]
[361943241,1747903845944,-1177.485932,0.00032129,4]
[361943242,1747903845953,-150.0,0.00032142,2]
[361943245,1747903845963,-150.0,0.00032155,2]
[361943248,1747903845973,-150.0,0.00032164,2]
[361943249,1747903845982,-150.0,0.00032167,2]
[361943252,1747903845992,-150.0,0.00032174,2]
[361943254,1747903846001,-1000.0,0.00032183,2]
[361943257,1747903846011,-7722.3602414,0.00032208,2]
[361943260,1747903846021,-150.0,0.0003221,2]
[361943262,1747903846030,-906.93214531,0.00032218,2]
[361943265,1747903846039,-1001.81659429,0.00032218,2]
[361943268,1747903846049,-1145.48903361,0.00032218,2]
[361943271,1747903846058,-150.0,0.00032229,2]
[361943273,1747903846068,-150.0,0.0003223,2]
[361943276,1747903846078,-150.0,0.00032241,2]
[361943279,1747903846088,-150.0,0.00032264,2]
[361943281,1747903846097,-150.0,0.00032298,2]
[361943284,1747903846107,-150.0,0.00032311,2]
[361943286,1747903846117,-150.0,0.00032323,2]
[361943289,1747903846131,-150.0,0.00032333,2]
[361943291,1747903846141,-1000.0,0.00032346,2]
[361943293,1747903846151,-150.0,0.0003236,2]
[361943295,1747903846161,-255.53941132,0.00032365,2]
[361943297,1747903846171,-150.0,0.0003237,2]
[361943300,1747903846182,-150.0,0.00032383,2]
[361943301,1747903846192,-150.0,0.00032417,2]
[361943303,1747903846202,-150.0,0.00032419,2]
[361943306,1747903846212,-150.0,0.00032425,2]
[361943307,1747903846222,-150.0,0.0003243,2]
[361943309,1747903846232,-150.0,0.00032434,2]
[361943312,1747903846242,-150.0,0.00032442,2]
[361943314,1747903846252,-150.0,0.00032449,2]
[361943316,1747903846263,-150.0,0.00032465,2]
[361943318,1747903846272,-150.0,0.00032484,2]
[361943319,1747903846283,-221.48570765,0.00032486,27]
[361943322,1747903846293,-150.0,0.00032494,2]
[361943324,1747903846302,-227.49659665,0.000325,120]
[361943325,1747903846312,-200.0,0.000325,11]
[361943327,1747903846322,-150.0,0.00032502,2]
[361943330,1747903846331,-150.0,0.0003251,2]
[361943332,1747903846341,-150.0,0.00032512,2]
[361943334,1747903846350,-150.0,0.00032529,2]
[361943336,1747903846360,-150.0,0.00032556,2]
[361943338,1747903846369,-150.0,0.00032567,2]
[361943340,1747903846382,-85591.46,0.00032578,5]
[361943342,1747903846391,-7722.3602414,0.0003258,2]
[361943344,1747903846400,-150.0,0.00032581,2]
[361943346,1747903846409,-150.0,0.00032582,2]
[361943348,1747903846419,-150.0,0.00032587,2]
[361943350,1747903846429,-6974.67,0.000326,2]
[361943352,1747903846438,-2174.61,0.000326,2]
[361943354,1747903846448,-500.0,0.000326,11]
[361943356,1747903846458,-1500.0,0.000326,11]
[361943358,1747903846467,-1000.0,0.00032607,2]
[361943360,1747903846477,-7722.3602414,0.0003264,2]
[361943362,1747903846486,-7722.3602414,0.00032648,2]
[361943364,1747903846496,-5283.0,0.00032649,45]
[361943366,1747903846505,-7722.3602414,0.0003265,2]
[361943368,1747903846515,-241.80418926,0.0003265,2]
[361943370,1747903846525,-150.0,0.00032651,2]
[361943372,1747903846534,-150.0,0.00032655,2]
[361943374,1747903846544,-25000.0,0.0003266,2]
[361943376,1747903846553,-1000.0,0.00032682,2]
[361943378,1747903846563,-1000.0,0.00032689,2]
[361943381,1747903846573,-150.0,0.0003269,2]
[361943383,1747903846582,-7722.3602414,0.0003269,2]
[361943385,1747903846591,-150.0,0.00032696,2]
[361943387,1747903846601,-150.0,0.00032699,2]
[361943389,1747903846610,-7722.3602414,0.00032699,2]
[361943391,1747903846620,-800.0,0.000327,11]
[361943393,1747903846632,-1325.18743783,0.000327,2]
[361943395,1747903846641,-1325.18743771,0.000327,2]
[361943397,1747903846651,-1325.18743771,0.000327,2]
[361943398,1747903846660,-1325.18743771,0.000327,2]
[361943400,1747903846670,-1325.18743771,0.000327,2]
[361943402,1747903846679,-1325.18743771,0.000327,2]
[361943405,1747903846689,-1325.18743771,0.000327,2]
[361943406,1747903846699,-1325.18743771,0.000327,2]
[361943409,1747903846709,-1325.18743771,0.000327,2]
[361943411,1747903846718,-1325.18743771,0.000327,2]
[361943412,1747903846727,-1325.18743771,0.000327,2]
[361943414,1747903846737,-1325.18743771,0.000327,2]
[361943416,1747903846746,-1325.18743771,0.000327,2]
[361943418,1747903846755,-1325.18743771,0.000327,2]
[361943420,1747903846764,-1325.18743771,0.000327,2]
[361943422,1747903846778,-150.0,0.00032703,2]
[361943424,1747903846787,-150.0,0.00032707,2]
[361943427,1747903846798,-150.0,0.00032709,2]
[361943428,1747903846807,-150.0,0.00032712,2]
[361943430,1747903846818,-150.0,0.0003272,2]
[361943432,1747903846828,-150.0,0.00032725,2]
[361943434,1747903846838,-200.0,0.00032736,2]
[361943436,1747903846847,-150.0,0.00032739,2]
[361943438,1747903846857,-150.0,0.00032739,2]
[361943440,1747903846867,-150.0,0.00032749,2]
[361943442,1747903846877,-7722.3602414,0.00032766,2]
[361943444,1747903846887,-150.0,0.00032766,2]
[361943446,1747903846897,-365.5,0.0003277,120]
[361943448,1747903846906,-150.31695938,0.0003277,2]
[361943450,1747903846916,-9662.7131,0.00032776,2]
[361943452,1747903846925,-156.73245421,0.00032776,4]
[361943455,1747903846935,-255.53941132,0.00032776,2]
[361943457,1747903846944,-150.0,0.00032786,2]
[361943459,1747903846954,-150.0,0.00032793,2]
[361943461,1747903846964,-1000.0,0.000328,11]
[361943463,1747903846974,-150.0,0.00032815,2]
[361943465,1747903846983,-150.0,0.00032816,2]
[361943467,1747903846993,-150.0,0.00032842,2]
[361943469,1747903847003,-150.0,0.00032847,2]
[361943471,1747903847012,-1000.0,0.0003285,2]
[361943473,1747903847022,-69501.2421726,0.00032856,2]
[361943475,1747903847032,-967.21675704,0.00032856,2]
[361943477,1747903847041,-241.80418926,0.0003286,2]
[361943479,1747903847051,-483.60837852,0.00032866,2]
[361943481,1747903847060,-20827.4183384,0.0003287,2]
[361943483,1747903847069,-601.6888839,0.0003287,2]
[361943485,1747903847079,-271.59339695,0.00032873,5]
[361943487,1747903847088,-504.43010818,0.00032873,5]
[361943489,1747903847098,-500.0,0.00032873,5]
[361943491,1747903847107,-500.36503073,0.00032873,5]
[361943493,1747903847117,-500.0,0.00032873,5]
[361943495,1747903847130,-500.0,0.00032873,5]
[361943497,1747903847139,-150.0,0.00032875,2]
[361943499,1747903847151,-162.11,0.00032875,2]
[361943501,1747903847160,-162.11,0.00032875,2]
[361943503,1747903847170,-348.0567,0.00032876,5]
[361943505,1747903847179,-266.68248329,0.00032876,2]
[361943507,1747903847189,-151.0,0.00032876,7]
[361943509,1747903847198,-151.0,0.00032876,7]
[361943511,1747903847208,-153.365472,0.00032876,7]
[361943513,1747903847218,-151.0,0.00032876,7]
[361943515,1747903847227,-151.0,0.00032876,7]
[361943517,1747903847237,-151.0,0.00032876,7]
[361943519,1747903847247,-169.813586,0.00032876,5]
[361943521,1747903847257,-168.677532,0.00032876,5]
[361943523,1747903847266,-185.050854,0.00032876,5]
[361943525,1747903847276,-151.0,0.00032876,7]
[361943527,1747903847285,-151.0,0.00032876,7]
[361943529,1747903847295,-234.538565,0.00032876,5]
[361943531,1747903847304,-420.0,0.00032876,5]
[361943533,1747903847314,-443.12912505,0.00032876,5]
[361943535,1747903847323,-420.0,0.00032876,5]
[361943537,1747903847332,-420.82579771,0.00032876,5]
[361943540,1747903847342,-404.90572013,0.00032876,5]
[361943542,1747903847351,-166.666666,0.00032876,5]
[361943544,1747903847361,-422.11494322,0.00032876,5]
[361943546,1747903847370,-151.0,0.00032876,7]
[361943548,1747903847381,-420.53950538,0.00032876,5]
[361943550,1747903847391,-204.5468073,0.00032876,5]
[361943551,1747903847401,-420.0,0.00032876,5]
[361943553,1747903847411,-420.0,0.00032876,5]
[361943555,1747903847421,-317.68277111,0.00032876,5]
[361943557,1747903847431,-435.75961782,0.00032876,5]
[361943559,1747903847440,-420.0,0.00032876,5]
[361943561,1747903847450,-151.0,0.00032876,7]
[361943563,1747903847459,-420.0,0.00032876,5]
[361943565,1747903847469,-534.32689253,0.00032876,5]
[361943567,1747903847478,-278.71545539,0.00032876,5]
[361943569,1747903847488,-151.0,0.00032876,7]
[361943571,1747903847497,-299.76367169,0.00032876,5]
[361943574,1747903847507,-151.0,0.00032876,7]
[361943576,1747903847517,-176.59851872,0.00032876,3]
[361943578,1747903847526,-420.0,0.00032876,5]
[361943580,1747903847536,-151.0,0.00032876,7]
[361943582,1747903847546,-485.83790422,0.00032876,5]
[361943584,1747903847555,-151.0,0.00032876,7]
[361943585,1747903847565,-422.59637636,0.00032876,5]
[361943587,1747903847574,-206.63705817,0.00032876,5]
[361943589,1747903847583,-420.0,0.00032876,5]
[361943591,1747903847593,-200.18413577,0.00032876,2]
[361943594,1747903847603,-420.0,0.00032876,5]
[361943596,1747903847612,-420.0,0.00032876,5]
[361943598,1747903847623,-420.0,0.00032876,5]
[361943600,1747903847632,-420.0,0.00032876,5]
[361943602,1747903847641,-421.77561102,0.00032876,5]
[361943604,1747903847650,-420.0,0.00032876,5]
[361943606,1747903847660,-421.21399392,0.00032876,5]
[361943608,1747903847669,-850.2,0.00032876,5]
[361943621,1747903847783,-787.61,0.00032876,5]
[361943622,1747903847795,-420.0,0.00032876,5]
[361943623,1747903847804,-472.53,0.00032876,5]
[361943624,1747903847813,-420.0,0.00032876,5]
[361943625,1747903847822,-582.35,0.00032876,5]
[361943626,1747903847831,-1063.15,0.00032876,5]
[361943627,1747903847840,-420.53666583,0.00032876,5]
[361943628,1747903847850,-420.0,0.00032876,5]
[361943629,1747903847860,-420.0,0.00032876,5]
[361943630,1747903847871,-420.0,0.00032876,5]
[361943631,1747903847880,-542.78,0.00032876,5]
[361943632,1747903847890,-420.0,0.00032876,5]
[361943634,1747903847900,-422.14226291,0.00032876,5]
[361943636,1747903847909,-1068.42,0.00032876,5]
[361943638,1747903847918,-420.0,0.00032876,5]
[361943640,1747903847927,-789.89,0.00032876,5]
[361943642,1747903847942,-244.50500758,0.00032876,5]
[361943644,1747903847951,-151.0,0.00032876,7]
[361943646,1747903847960,-151.0,0.00032876,7]
[361943648,1747903847971,-420.0,0.00032876,5]
[361943650,1747903847981,-151.59477,0.00032876,7]
[361943652,1747903847990,-421.94520149,0.00032876,5]
[361943654,1747903848000,-152.351605,0.00032876,7]
[361943656,1747903848010,-420.0,0.00032876,5]
[361943658,1747903848019,-420.0,0.00032876,5]
[361943660,1747903848029,-433.41,0.00032876,5]
[361943662,1747903848039,-504.53,0.00032876,5]
[361943664,1747903848049,-151.0,0.00032876,7]
[361943666,1747903848059,-420.0,0.00032876,5]
[361943669,1747903848069,-420.0,0.00032876,5]
[361943670,1747903848079,-420.0,0.00032876,5]
[361943672,1747903848091,-420.0,0.00032876,5]
[361943675,1747903848101,-298.949223,0.00032876,7]
[361943676,1747903848112,-420.0,0.00032876,5]
[361943678,1747903848122,-204.57281611,0.00032876,5]
[361943681,1747903848133,-151.0,0.00032876,7]
[361943683,1747903848143,-421.96897232,0.00032876,5]
[361943684,1747903848152,-153.027451,0.00032876,7]
[361943686,1747903848162,-650.33,0.00032876,5]
[361943688,1747903848171,-420.0,0.00032876,5]
[361943690,1747903848181,-420.0,0.00032876,5]
[361943692,1747903848191,-693.69,0.00032876,5]
[361943694,1747903848201,-162.646122,0.00032876,7]
[361943697,1747903848211,-1082.87,0.00032876,5]
[361943699,1747903848222,-420.0,0.00032876,5]
[361943701,1747903848233,-421.12525539,0.00032876,5]
[361943703,1747903848242,-505.84,0.00032876,5]
[361943705,1747903848251,-420.0,0.00032876,5]
[361943707,1747903848261,-151.0,0.00032876,7]
[361943709,1747903848271,-151.0,0.00032876,7]
[361943711,1747903848280,-420.0,0.00032876,5]
[361943713,1747903848290,-420.0,0.00032876,5]
[361943715,1747903848300,-420.0,0.00032876,5]
[361943717,1747903848309,-420.0,0.00032876,5]
[361943719,1747903848320,-566.9,0.00032876,5]
[361943721,1747903848330,-151.0,0.00032876,7]
[361943722,1747903848339,-151.0,0.00032876,7]
[361943724,1747903848349,-423.26291998,0.00032876,5]
[361943726,1747903848359,-420.0,0.00032876,5]
[361943728,1747903848369,-669.56,0.00032876,5]
[361943730,1747903848379,-420.0,0.00032876,5]
[361943733,1747903848388,-544.87,0.00032876,5]
[361943734,1747903848398,-869.75,0.00032876,5]
[361943736,1747903848408,-420.0,0.00032876,5]
[361943739,1747903848418,-902.26,0.00032876,5]
[361943740,1747903848427,-228.87625476,0.00032876,5]
[361943742,1747903848436,-420.0,0.00032876,5]
[361943744,1747903848446,-725.39,0.00032876,5]
[361943746,1747903848456,-582.99,0.00032876,5]
[361943748,1747903848466,-151.0,0.00032876,7]
[361943750,1747903848475,-424.97738832,0.00032876,5]